bitfinex-derivatives/quotes_BTCF0:USTF0_20240820
["timestamp","ask_amount","ask_price","bid_price","bid_amount"]
[1724130082414,0.081956,60975.0,60967.0,0.081966]
[1724130082723,0.084956,60975.0,60967.0,0.081966]
[1724130082919,0.084956,60975.0,60968.0,0.081965]
[1724130083222,0.368556,60975.0,60966.0,0.002]
[1724130083422,0.368556,60975.0,60966.0,0.001]
[1724130083423,0.44812796,60967.0,60966.0,0.001]
[1724130084814,0.44812796,60967.0,60964.0,0.08221613]
[1724130085115,0.44812796,60965.0,60964.0,0.08221613]
[1724130085713,4.21812796,60965.0,60964.0,0.08221613]
[1724130085915,4.21812796,60965.0,60964.0,0.08321613]
[1724130086521,4.21812796,60965.0,60964.0,0.08221613]
[1724130086825,4.21812796,60965.0,60964.0,0.08321613]
[1724130087226,4.21912796,60965.0,60964.0,0.08421613]
[1724130087722,3.771,60965.0,60964.0,0.08421613]
[1724130093111,3.771,60965.0,60964.0,0.48421613]
[1724130094818,0.001,60965.0,60964.0,0.48421613]
[1724130095916,0.001,60965.0,60964.0,0.08421613]
[1724130099622,0.22976,60981.0,60977.0,0.081953]
[1724130099925,0.081952,60978.0,60977.0,0.3608]
[1724130100126,4.30007996,60978.0,60977.0,0.3608]
[1724130100822,4.30007996,60978.0,60977.0,0.3618]
[1724130101219,4.21812796,60978.0,60977.0,0.3618]
[1724130101421,4.21812796,60978.0,60977.0,0.444753]
[1724130101921,3.77,60978.0,60977.0,0.444753]
[1724130102111,0.0968,60979.0,60978.0,0.081952]
[1724130102317,0.0498,60979.0,60978.0,0.081952]
[1724130102626,0.0498,60979.0,60978.0,0.481952]
[1724130103519,0.0457,60985.0,60983.0,0.081945]
[1724130103712,0.0457,60985.0,60984.0,0.081944]
[1724130105318,0.0457,60985.0,60984.0,0.082944]
[1724130105522,0.0457,60985.0,60984.0,0.083944]
[1724130106024,0.0483,60988.0,60987.0,0.08194]
[1724130107617,0.0495,60993.0,60987.0,0.401]
[1724130107817,0.0981,60992.0,60991.0,0.081934]
[1724130108828,0.54622796,60992.0,60991.0,0.081934]
[1724130109019,4.31622796,60992.0,60991.0,0.081934]
[1724130110029,4.31622796,60992.0,60987.0,0.002]
[1724130110230,0.44812796,60989.0,60987.0,0.002]
[1724130110615,0.05821032,60988.0,60987.0,0.001]
[1724130110826,0.02656322,60988.0,60987.0,0.08294]
[1724130111218,3.79656322,60988.0,60987.0,0.08294]
[1724130111419,3.79656316,60988.0,60987.0,0.08294]
[1724130112020,3.79656316,60988.0,60987.0,0.08394]
[1724130112226,4.24469112,60988.0,60987.0,0.08394]
[1724130115928,4.24469118,60988.0,60987.0,0.08394]
[1724130116733,4.27633828,60988.0,60987.0,0.08394]
[1724130118531,4.21812796,60988.0,60987.0,0.08394]
[1724130120927,4.86252796,60988.0,60983.0,0.04880944]
[1724130121142,4.86252796,60988.0,60978.0,0.06532538]
[1724130121143,0.53007896,60979.0,60978.0,0.00024613]
[1724130121331,0.081957,60975.0,60972.0,0.8743]
[1724130121639,0.44812796,60973.0,60972.0,0.8743]
[1724130122031,0.44812796,60973.0,60972.0,0.95626]
[1724130123532,3.77,60974.0,60973.0,0.081959]
[1724130124849,3.772,60974.0,60973.0,0.13176844]
[1724130125233,3.774,60974.0,60973.0,0.15844812]
[1724130125443,3.774,60974.0,60973.0,0.083959]
[1724130125444,4.22212796,60974.0,60973.0,0.083959]
[1724130125842,4.30408496,60974.0,60973.0,0.002]
[1724130126651,4.30408496,60974.0,60973.0,0.02762353]
[1724130127942,4.30408496,60974.0,60973.0,0.02762326]
[1724130128444,4.22212796,60974.0,60973.0,0.02762326]
[1724130129249,4.22212796,60974.0,60973.0,0.07649129]
[1724130130051,4.22212796,60974.0,60973.0,0.15845029]
[1724130131848,4.30408496,60974.0,60973.0,0.002]
[1724130132053,4.30408496,60974.0,60973.0,0.0276234]
[1724130133153,4.35313778,60974.0,60973.0,0.002]
[1724130134946,4.30408496,60974.0,60973.0,0.002]
[1724130136352,0.081964,60969.0,60968.0,0.3608]
[1724130136745,0.53009196,60969.0,60968.0,0.3608]
[1724130137151,0.53009196,60969.0,60966.0,0.00024613]
[1724130137152,0.081967,60967.0,60966.0,0.00024613]
[1724130137354,0.53009496,60967.0,60966.0,0.00024613]
[1724130137953,0.69009496,60967.0,60966.0,0.00024613]
[1724130138156,0.75549831,60967.0,60966.0,0.00024613]
[1724130138355,0.242967,60967.0,60966.0,0.00024613]
[1724130138559,0.69109496,60967.0,60966.0,0.00024613]
[1724130138953,0.081973,60963.0,60960.0,0.081976]
[1724130139156,0.60912796,60967.0,60960.0,0.081976]
[1724130139157,0.44812796,60961.0,60960.0,0.081976]
[1724130139360,0.44812796,60961.0,60957.0,0.40966803]
[1724130139361,0.44812796,60961.0,60957.0,0.3608]
[1724130139550,0.44812796,60961.0,60953.0,0.0727664]
[1724130139551,0.081983,60955.0,60953.0,0.04886474]
[1724130139750,0.49572796,60954.0,60949.0,0.04886474]
[1724130139952,0.53011396,60953.0,60947.0,0.04886474]
[1724130140150,0.081989,60951.0,60947.0,0.00024613]
[1724130140454,0.44812796,60948.0,60947.0,0.00024613]
[1724130141453,4.21812796,60948.0,60947.0,0.00024613]
[1724130141859,4.21812796,60948.0,60947.0,0.00424613]
[1724130142862,4.21812796,60948.0,60947.0,0.01024613]
[1724130143163,4.21812796,60948.0,60947.0,0.09224013]
[1724130144659,0.44812796,60948.0,60947.0,0.09224013]
[1724130144855,0.0476,60954.0,60947.0,0.41024613]
[1724130145057,0.0476,60954.0,60951.0,0.6444]
[1724130145762,3.77,60957.0,60953.0,0.3608]
[1724130145952,0.44812796,60956.0,60955.0,0.081983]
[1724130146153,0.44812796,60956.0,60953.0,0.3608]
[1724130146154,4.21812796,60957.0,60956.0,0.081982]
[1724130146356,0.127174,60962.0,60957.0,0.08198]
[1724130146561,0.44812796,60958.0,60957.0,0.08198]
[1724130147565,0.44812796,60958.0,60957.0,0.08298]
[1724130148064,0.44812796,60958.0,60957.0,0.08198]
[1724130148265,0.45012796,60958.0,60957.0,0.08198]
[1724130148858,0.45012796,60958.0,60957.0,0.44278]
[1724130158170,0.002,60958.0,60957.0,0.44278]
[1724130159660,0.45012796,60958.0,60957.0,0.44278]
[1724130162575,4.22012796,60958.0,60957.0,0.60504474]
[1724130163269,4.22012796,60958.0,60957.0,0.63067262]
[1724130163668,4.21812796,60958.0,60957.0,0.63067262]
[1724130164371,4.21812796,60958.0,60957.0,0.58380788]
[1724130165868,4.21812796,60958.0,60957.0,0.47040788]
[1724130166070,4.49152796,60958.0,60957.0,0.02762788]
[1724130166267,4.49152796,60958.0,60957.0,0.002]
[1724130166461,4.37812796,60958.0,60957.0,0.002]
[1724130166664,0.081989,60951.0,60949.0,0.04896464]
[1724130166859,4.85976994,60958.0,60947.0,0.00024613]
[1724130166860,0.44812796,60949.0,60947.0,0.00024613]
[1724130167067,0.44812796,60949.0,60937.0,0.87658]
[1724130167068,0.20118615,60936.0,60930.0,0.00784731]
[1724130167368,0.17,60949.0,60930.0,0.00017608]
[1724130167369,0.20118615,60931.0,60930.0,0.00017608]
[1724130167770,0.25817743,60931.0,60930.0,0.00017608]
[1724130167968,4.02817743,60931.0,60930.0,0.00017608]
[1724130168263,4.09352292,60931.0,60930.0,0.00017608]
[1724130168470,4.09852292,60931.0,60930.0,0.00117608]
[1724130168662,4.49852292,60931.0,60930.0,0.00117608]
[1724130168862,0.19976394,60925.0,60913.0,0.3608]
[1724130169062,0.40981349,60923.0,60913.0,0.3608]
[1724130169273,0.19976394,60914.0,60913.0,0.3608]
[1724130169862,0.19994002,60914.0,60913.0,0.3608]
[1724130170768,0.19994002,60914.0,60913.0,0.3688]
[1724130171173,0.00017608,60914.0,60913.0,0.3778]
[1724130171572,0.00017608,60914.0,60913.0,0.3698]
[1724130171876,0.00117608,60914.0,60913.0,0.3778]
[1724130176179,0.20094002,60914.0,60913.0,0.3778]
[1724130178869,0.20094002,60914.0,60913.0,0.459839]
[1724130179177,0.00117608,60914.0,60913.0,0.459839]
[1724130179567,1e-08,60914.0,60913.0,1.352359]
[1724130180274,1e-08,60914.0,60913.0,0.952359]
[1724130180472,1e-08,60914.0,60913.0,0.459839]
[1724130180782,1e-08,60914.0,60913.0,0.952359]
[1724130180972,1e-08,60914.0,60913.0,0.459839]
[1724130181279,1e-08,60914.0,60913.0,0.952359]
[1724130181480,1e-08,60914.0,60913.0,0.459839]
[1724130181677,1e-08,60914.0,60913.0,1.352359]
[1724130184478,1e-08,60914.0,60913.0,1.034398]
[1724130186872,1e-08,60914.0,60913.0,1.908698]
[1724130188082,1e-08,60914.0,60913.0,1.416178]
[1724130188283,1e-08,60914.0,60913.0,1.826659]
[1724130188985,1e-08,60914.0,60913.0,1.334139]
[1724130189177,1e-08,60914.0,60913.0,1.826659]
[1724130189578,1e-08,60914.0,60913.0,1.334139]
[1724130189881,1e-08,60914.0,60913.0,1.826659]
[1724130190275,1e-08,60914.0,60913.0,1.334139]
[1724130190472,1e-08,60914.0,60913.0,1.734139]
[1724130190671,1e-08,60914.0,60913.0,1.826659]
[1724130190884,1e-08,60914.0,60913.0,2.226659]
[1724130191083,1e-08,60914.0,60913.0,1.826659]
[1724130192285,1e-08,60914.0,60913.0,1.334139]
[1724130192673,1e-08,60914.0,60913.0,1.338139]
[1724130193079,1e-08,60914.0,60913.0,1.87956522]
[1724130193286,0.00024613,60920.0,60919.0,0.082031]
[1724130193487,0.00024613,60920.0,60919.0,0.442831]
[1724130193784,0.20001007,60920.0,60919.0,0.442831]
[1724130195085,0.20001007,60920.0,60919.0,0.445831]
[1724130195289,0.20001007,60920.0,60919.0,0.51120446]
[1724130195993,0.20001007,60920.0,60919.0,0.51520446]
[1724130196288,0.20001007,60920.0,60919.0,0.449831]
[1724130196690,0.20001007,60920.0,60919.0,0.448831]
[1724130197086,0.20001007,60920.0,60919.0,0.447831]
[1724130197482,0.20001007,60920.0,60919.0,0.087031]
[1724130197686,0.20001007,60920.0,60919.0,0.447831]
[1724130198494,0.20001007,60920.0,60919.0,0.087031]
[1724130198794,0.20001007,60920.0,60919.0,0.447831]
[1724130199383,0.20001007,60920.0,60919.0,0.45594976]
[1724130199585,0.04914986,60930.0,60929.0,0.082018]
[1724130199781,0.0487,60931.0,60930.0,0.082016]
[1724130199982,0.0487,60931.0,60930.0,0.28888548]
[1724130200189,0.0487,60931.0,60930.0,0.082016]
[1724130200492,0.0487,60931.0,60930.0,0.195416]
[1724130201495,0.0487,60931.0,60930.0,0.4022845]
[1724130201691,0.0487,60931.0,60930.0,0.32136566]
[1724130201991,0.00024613,60937.0,60936.0,0.082008]
[1724130202192,0.00024613,60937.0,60936.0,0.556208]
[1724130202492,0.00024613,60937.0,60936.0,0.442808]
[1724130203193,0.00024613,60937.0,60936.0,0.443808]
[1724130204098,0.00024613,60937.0,60936.0,0.444808]
[1724130204285,0.20001007,60937.0,60936.0,0.06737989]
[1724130204600,0.20001007,60937.0,60931.0,0.04904908]
[1724130204601,0.082014,60932.0,60931.0,0.04904908]
[1724130204900,0.082014,60932.0,60927.0,0.04904908]
[1724130204901,0.082018,60929.0,60927.0,0.04904908]
[1724130205091,0.32948294,60928.0,60927.0,0.04904908]
[1724130205595,0.32948294,60928.0,60926.0,0.04904908]
[1724130205899,0.129719,60928.0,60926.0,0.04904908]
[1724130206085,0.19976394,60927.0,60924.0,0.00024613]
[1724130206290,0.19976394,60925.0,60924.0,0.00024613]
[1724130207097,0.20791855,60925.0,60924.0,0.00024613]
[1724130207599,0.25781855,60925.0,60924.0,0.00024613]
[1724130208190,0.25981855,60925.0,60924.0,0.00024613]
[1724130208591,0.34184155,60925.0,60924.0,0.04931241]
[1724130208894,0.33368694,60925.0,60924.0,0.04931241]
[1724130209698,0.33368694,60925.0,60924.0,0.00024613]
[1724130210596,4.10368694,60925.0,60924.0,0.00024613]
[1724130211192,4.10368694,60925.0,60924.0,0.02588943]
[1724130211393,4.10368694,60925.0,60924.0,0.07496658]
[1724130211996,4.10368694,60925.0,60924.0,0.02688943]
[1724130212202,4.10168694,60925.0,60924.0,0.00124613]
[1724130212398,4.10168694,60925.0,60924.0,0.02688946]
[1724130214493,4.10168694,60925.0,60924.0,0.02788946]
[1724130215000,4.10168694,60925.0,60924.0,0.02688946]
[1724130215205,4.10268694,60925.0,60924.0,0.02588946]
[1724130215393,4.10268694,60925.0,60924.0,0.02788946]
[1724130215595,4.15173256,60925.0,60924.0,0.02788946]
[1724130216302,4.15173256,60925.0,60924.0,0.02788949]
[1724130216495,4.10268694,60925.0,60924.0,0.02688949]
[1724130216695,4.10268694,60925.0,60924.0,0.07596944]
[1724130216997,4.10168694,60925.0,60924.0,0.07596944]
[1724130217699,4.10168694,60925.0,60924.0,0.08396944]
[1724130218103,4.10168694,60925.0,60924.0,0.07596944]
[1724130218303,4.10168694,60925.0,60924.0,0.07496944]
[1724130218603,4.10168694,60925.0,60924.0,0.07596944]
[1724130218804,4.10168694,60925.0,60924.0,0.07596945]
[1724130220995,4.10168694,60925.0,60915.0,0.3608]
[1724130220996,4.50168694,60925.0,60921.0,0.06539877]
[1724130221197,0.11792864,60918.0,60913.0,0.04909052]
[1724130221393,0.49191854,60914.0,60913.0,0.04909052]
[1724130221598,0.56076664,60914.0,60913.0,0.02564799]
[1724130221797,4.33076664,60914.0,60913.0,0.02564799]
[1724130222199,4.29780109,60914.0,60913.0,0.02564799]
[1724130222605,4.24872864,60914.0,60913.0,0.02564799]
[1724130222806,4.29780109,60914.0,60913.0,0.02564799]
[1724130223004,4.29780109,60914.0,60913.0,0.03564799]
[1724130223204,4.24872864,60914.0,60913.0,0.03564799]
[1724130223709,4.24872864,60914.0,60913.0,0.04464799]
[1724130223903,3.88792864,60914.0,60913.0,0.04464799]
[1724130228712,3.88792864,60914.0,60913.0,0.019]
[1724130228915,3.88792864,60914.0,60913.0,0.04464762]
[1724130229422,3.88792864,60914.0,60913.0,0.12668662]
[1724130229605,0.00024613,60920.0,60913.0,0.46269321]
[1724130229924,0.11792864,60919.0,60918.0,0.082032]
[1724130230217,0.11792864,60919.0,60918.0,0.10767962]
[1724130230924,0.11792864,60919.0,60918.0,0.17431114]
[1724130231217,0.11792864,60919.0,60918.0,0.15669101]
[1724130231421,0.11792864,60919.0,60918.0,0.15969101]
[1724130232117,0.11792864,60919.0,60918.0,0.13404339]
[1724130232317,0.11792864,60919.0,60918.0,0.11067625]
[1724130232819,0.11792864,60919.0,60918.0,0.11467625]
[1724130233013,0.11792864,60919.0,60918.0,0.11667625]
[1724130233511,0.11792864,60919.0,60918.0,0.11167625]
[1724130233711,0.11792864,60919.0,60918.0,0.11467625]
[1724130234219,0.11792864,60919.0,60918.0,0.18013271]
[1724130234908,0.11792864,60919.0,60918.0,0.19775016]
[1724130235914,0.11792864,60919.0,60918.0,0.18013271]
[1724130236310,0.11792864,60919.0,60918.0,0.18013264]
[1724130237116,0.04907245,60926.0,60918.0,0.72020324]
[1724130237414,0.082019,60928.0,60924.0,0.3608]
[1724130237415,0.11792864,60925.0,60924.0,0.3608]
[1724130237620,0.11792864,60925.0,60924.0,0.46846718]
[1724130238010,3.77,60926.0,60924.0,0.46846718]
[1724130238211,3.88792864,60926.0,60925.0,0.02564418]
[1724130239316,3.88892864,60926.0,60925.0,0.02564418]
[1724130240418,0.001,60925.0,60924.0,0.442823]
[1724130240626,0.001,60925.0,60924.0,0.4684648]
[1724130241524,0.11892864,60925.0,60924.0,0.4684648]
[1724130241719,0.11792864,60925.0,60924.0,0.4684648]
[1724130241929,3.77084,60926.0,60925.0,0.082023]
[1724130241930,3.77184,60926.0,60925.0,0.082023]
[1724130242114,0.11892864,60926.0,60925.0,0.10766473]
[1724130242311,0.001,60926.0,60925.0,0.10766473]
[1724130242616,0.00024613,60931.0,60925.0,0.96129288]
[1724130242818,0.00024613,60931.0,60930.0,0.70970782]
[1724130243124,0.00024613,60931.0,60930.0,0.76096164]
[1724130243324,0.00024613,60931.0,60930.0,0.84297762]
[1724130243519,0.00024613,60931.0,60930.0,0.81733925]
[1724130244421,0.00024613,60931.0,60930.0,0.75195773]
[1724130244721,0.00124613,60931.0,60930.0,0.75295773]
[1724130244919,0.00224613,60931.0,60930.0,0.46945773]
[1724130245713,0.00224613,60931.0,60930.0,0.46945475]
[1724130245931,0.00224613,60931.0,60930.0,0.443816]
[1724130246128,0.00224613,60931.0,60930.0,0.46945476]
[1724130246323,0.00224613,60931.0,60930.0,0.51842794]
[1724130246526,0.00224613,60931.0,60930.0,0.46945476]
[1724130247025,0.00224613,60931.0,60930.0,0.48705144]
[1724130247929,0.00224613,60931.0,60930.0,0.51268983]
[1724130248625,0.00224613,60931.0,60930.0,0.75295476]
[1724130248829,0.00224613,60931.0,60930.0,0.79618925]
[1724130249324,0.00224613,60931.0,60930.0,0.86145015]
[1724130249828,0.00224613,60931.0,60930.0,0.79618925]
[1724130250220,0.00224613,60931.0,60930.0,1.28854925]
[1724130251223,0.00224613,60931.0,60930.0,1.3537867]
[1724130251431,0.00224613,60931.0,60930.0,1.30251032]
[1724130251726,0.00224613,60931.0,60930.0,1.35378674]
[1724130252331,0.0908,60942.0,60941.0,0.082002]
[1724130252531,0.0908,60942.0,60941.0,0.10763805]
[1724130252827,0.20872864,60942.0,60941.0,0.10763805]
[1724130253229,0.20872864,60942.0,60941.0,0.442802]
[1724130253530,0.20972864,60942.0,60941.0,0.46943668]
[1724130253732,0.20972864,60942.0,60941.0,0.47043668]
[1724130254121,0.20972864,60942.0,60941.0,0.444802]
[1724130254427,0.20972864,60942.0,60941.0,0.47043624]
[1724130254828,0.20972864,60942.0,60941.0,0.444802]
[1724130255032,0.11892864,60942.0,60941.0,0.47043622]
[1724130255827,0.11892864,60942.0,60941.0,0.47860805]
[1724130256128,0.11892864,60942.0,60941.0,0.45297383]
[1724130256324,0.11892864,60942.0,60941.0,0.47860651]
[1724130256931,0.11892864,60942.0,60941.0,0.09217383]
[1724130257127,0.11892864,60942.0,60941.0,0.45297383]
[1724130257324,0.11892864,60942.0,60941.0,0.47860651]
[1724130257527,0.11892864,60942.0,60941.0,0.45297383]
[1724130258231,0.11892864,60942.0,60941.0,0.47860651]
[1724130260631,0.11892864,60942.0,60941.0,0.59200651]
[1724130261221,0.11892864,60942.0,60941.0,0.56637383]
[1724130262329,0.11892864,60942.0,60941.0,0.61530086]
[1724130264235,0.11892864,60942.0,60941.0,0.56637383]
[1724130266133,0.04907245,60952.0,60941.0,0.56537383]
[1724130266330,0.00088,60951.0,60949.0,0.4742]
[1724130266633,0.04907245,60954.0,60950.0,0.195388]
[1724130266835,0.04907245,60953.0,60951.0,0.081988]
[1724130267928,0.04907245,60953.0,60952.0,0.1134]
[1724130269126,0.04907245,60953.0,60952.0,0.1144]
[1724130269328,3.77084,60955.0,60952.0,0.196387]
[1724130269536,3.77,60955.0,60952.0,0.196387]
[1724130270325,0.04905437,60953.0,60952.0,0.197387]
[1724130270933,0.04905437,60953.0,60952.0,0.196387]
[1724130271136,0.04905437,60953.0,60952.0,0.197387]
[1724130271331,3.77084,60955.0,60952.0,0.197387]
[1724130271637,0.04906743,60953.0,60952.0,0.197387]
[1724130272035,0.04906743,60954.0,60953.0,0.081986]
[1724130272236,3.77092,60955.0,60953.0,0.081986]
[1724130272538,3.77,60955.0,60953.0,0.081986]
[1724130273328,0.04906401,60954.0,60953.0,0.082986]
[1724130274238,0.04906401,60954.0,60953.0,0.083986]
[1724130275239,0.04906401,60954.0,60953.0,0.13294045]
[1724130275424,0.04906401,60954.0,60953.0,0.083986]
[1724130275834,3.77084,60955.0,60953.0,0.083986]
[1724130276143,0.08185934,60954.0,60953.0,0.083986]
[1724130277443,3.77084,60955.0,60953.0,0.082986]
[1724130277739,3.77084,60955.0,60953.0,0.083986]
[1724130277740,0.08180629,60954.0,60953.0,0.083986]
[1724130277943,3.77092,60955.0,60954.0,0.081984]
[1724130278127,3.77,60955.0,60954.0,0.081984]
[1724130278332,3.77,60955.0,60954.0,0.46841178]
[1724130278941,3.77,60955.0,60954.0,0.442784]
[1724130279240,3.77,60955.0,60954.0,0.443784]
[1724130280043,3.77,60955.0,60954.0,0.444784]
[1724130280830,3.77,60955.0,60954.0,0.47041214]
[1724130283246,3.77,60955.0,60954.0,0.5356728]
[1724130284343,3.77,60955.0,60954.0,0.47041214]
[1724130285639,3.77,60955.0,60954.0,0.53572722]
[1724130287445,3.77,60955.0,60954.0,0.47041214]
[1724130287847,3.77,60955.0,60954.0,0.46941214]
[1724130288149,3.77,60955.0,60954.0,0.48799685]
[1724130288446,3.77,60955.0,60954.0,0.444784]
[1724130288744,3.77,60955.0,60954.0,0.48799683]
[1724130289341,3.77,60955.0,60954.0,0.444784]
[1724130289655,3.77,60955.0,60954.0,0.47041209]
[1724130289841,3.77,60955.0,60954.0,0.46941209]
[1724130290043,3.77,60955.0,60954.0,0.10961209]
[1724130290241,3.77,60955.0,60954.0,0.47041209]
[1724130290748,3.77,60955.0,60954.0,0.10961209]
[1724130290956,3.77,60955.0,60954.0,0.47041209]
[1724130291147,3.77,60955.0,60954.0,0.55332527]
[1724130292138,3.77,60955.0,60954.0,0.16689569]
[1724130292338,3.77,60955.0,60954.0,0.55332378]
[1724130292849,3.77,60955.0,60954.0,0.19252378]
[1724130293053,3.77,60955.0,60954.0,0.55332378]
[1724130293238,3.81908602,60955.0,60954.0,0.4879961]
[1724130294052,3.81908602,60955.0,60954.0,0.1271961]
[1724130294347,3.81908602,60955.0,60954.0,0.4879961]
[1724130295341,0.04908602,60955.0,60954.0,0.4879961]
[1724130295936,0.04908602,60956.0,60955.0,0.081983]
[1724130296141,0.00024613,60958.0,60955.0,0.16465612]
[1724130296352,0.00024613,60958.0,60956.0,0.13419413]
[1724130296549,0.00024613,60958.0,60957.0,0.0432092]
[1724130297234,0.06569416,60958.0,60957.0,0.0432092]
[1724130297439,0.06569416,60958.0,60957.0,0.1251892]
[1724130297639,0.06569416,60958.0,60957.0,0.21617413]
[1724130298044,0.00024613,60958.0,60957.0,0.08198]
[1724130298243,0.00024613,60958.0,60957.0,0.15081759]
[1724130300356,0.06569416,60958.0,60957.0,0.09956017]
[1724130300549,0.06569416,60958.0,60957.0,0.15081633]
[1724130300852,0.06569416,60958.0,60957.0,0.12518825]
[1724130301052,0.06569416,60958.0,60957.0,0.26421633]
[1724130303451,0.00024613,60958.0,60957.0,0.26421291]
[1724130303653,0.06579424,60958.0,60957.0,0.26421291]
[1724130304248,0.00024613,60958.0,60957.0,0.26421291]
[1724130306453,0.00024613,60958.0,60957.0,0.24663624]
[1724130306749,0.00024613,60958.0,60957.0,0.24663634]
[1724130307253,0.00024613,60958.0,60957.0,0.26421377]
[1724130307459,0.00024613,60958.0,60957.0,0.22100785]
[1724130307643,0.00024613,60958.0,60957.0,0.2466357]
[1724130307949,0.00024613,60958.0,60957.0,0.26421326]
[1724130308550,1.41978195,60958.0,60956.0,0.06546362]
[1724130308857,1.41978195,60958.0,60942.0,0.082]
[1724130308858,0.081987,60953.0,60950.0,0.17888624]
[1724130309156,0.71411582,60957.0,60942.0,0.3608]
[1724130309157,4.30157814,60952.0,60949.0,0.06548624]
[1724130309348,4.35701702,60952.0,60946.0,0.14748024]
[1724130309547,4.35701702,60952.0,60950.0,0.04907081]
[1724130309747,4.35701702,60952.0,60951.0,0.1134]
[1724130310254,4.43900402,60952.0,60951.0,0.1134]
[1724130310453,3.77,60952.0,60951.0,0.1134]
[1724130310655,3.77,60952.0,60951.0,0.195388]
[1724130310656,3.83552287,60952.0,60951.0,0.195388]
[1724130310853,3.81913856,60952.0,60951.0,0.21297222]
[1724130311159,3.77,60952.0,60951.0,0.25397777]
[1724130311861,3.77,60952.0,60951.0,0.25397877]
[1724130312252,3.77,60952.0,60951.0,0.59719345]
[1724130312562,3.77,60952.0,60951.0,0.61477906]
[1724130313058,3.77,60952.0,60951.0,0.61577906]
[1724130313556,3.77,60952.0,60951.0,0.62399187]
[1724130314859,0.04913856,60955.0,60951.0,0.62384348]
[1724130315163,0.04913856,60955.0,60954.0,0.1134]
[1724130315468,0.04913856,60955.0,60954.0,0.17199106]
[1724130316363,0.05113856,60955.0,60954.0,0.25397506]
[1724130316553,0.05113856,60955.0,60954.0,0.21296965]
[1724130316859,0.05113856,60955.0,60954.0,0.25397463]
[1724130317363,0.05113856,60955.0,60954.0,0.25397421]
[1724130317558,0.002,60955.0,60954.0,0.25397421]
[1724130320554,0.002,60955.0,60954.0,0.30523053]
[1724130321773,0.00024613,60958.0,60957.0,0.08198]
[1724130321974,0.04912894,60969.0,60968.0,0.081965]
[1724130322156,0.3608,60980.0,60968.0,0.58401832]
[1724130322157,0.04912894,60971.0,60968.0,0.58401832]
[1724130322469,0.04912894,60971.0,60970.0,0.1134]
[1724130322769,0.081959,60973.0,60970.0,0.18221334]
[1724130322971,0.065503,60973.0,60972.0,0.1134]
[1724130323158,0.065503,60973.0,60972.0,0.13902288]
[1724130323356,0.065503,60974.0,60972.0,0.15658751]
[1724130323562,0.065503,60974.0,60973.0,0.02562288]
[1724130323863,0.065503,60974.0,60973.0,0.13902288]
[1724130324265,0.06543751,60974.0,60972.0,0.001]
[1724130324465,0.48255895,60975.0,60973.0,0.02562313]
[1724130324654,0.56451495,60975.0,60974.0,0.02562313]
[1724130324859,0.56451495,60975.0,60972.0,0.001]
[1724130325063,0.06542502,60974.0,60973.0,0.02562343]
[1724130325371,0.06542502,60974.0,60973.0,0.13902343]
[1724130325766,0.06542502,60974.0,60973.0,0.14102343]
[1724130326065,0.43458397,60975.0,60973.0,0.14102343]
[1724130326270,0.43458397,60975.0,60974.0,0.02562343]
[1724130326567,0.36915895,60975.0,60974.0,0.02562343]
[1724130328268,0.36915895,60975.0,60973.0,0.1154]
[1724130328269,0.3608,60975.0,60973.0,0.1154]
[1724130328481,0.3608,60975.0,60974.0,0.02562245]
[1724130328768,0.3608,60975.0,60974.0,0.02662245]
[1724130328969,0.3608,60975.0,60974.0,0.10857945]
[1724130329359,0.3608,60975.0,60974.0,0.10757945]
[1724130329766,0.3608,60975.0,60974.0,0.10857945]
[1724130330257,0.3608,60975.0,60974.0,0.10957945]
[1724130330462,0.40982123,60975.0,60974.0,0.10857945]
[1724130330662,0.40982123,60975.0,60974.0,0.10957945]
[1724130332268,0.40982123,60975.0,60974.0,0.083957]
[1724130332571,0.40982123,60975.0,60974.0,0.10957954]
[1724130332572,0.3608,60975.0,60974.0,0.10957954]
[1724130333269,0.442756,60975.0,60974.0,0.02762254]
[1724130334469,1.484756,60975.0,60964.0,0.08221713]
[1724130334669,0.3608,60966.0,60964.0,0.08221713]
[1724130335067,0.0459,60965.0,60964.0,0.08221713]
[1724130335867,0.0459,60965.0,60964.0,0.00124613]
[1724130336073,0.619949,60965.0,60964.0,0.00124613]
[1724130336571,3.897869,60965.0,60964.0,0.00124613]
[1724130338682,4.389949,60965.0,60964.0,0.00124613]
[1724130339475,4.45530007,60965.0,60964.0,0.00124613]
[1724130340278,0.09052999,60965.0,60964.0,0.00124613]
[1724130340479,0.14741326,60972.0,60971.0,0.081961]
[1724130340668,0.04903918,60972.0,60971.0,0.3608]
[1724130340871,0.04903918,60973.0,60971.0,0.3608]
[1724130341079,0.3608,60981.0,60973.0,0.081958]
[1724130341080,0.04903918,60977.0,60973.0,0.081958]
[1724130341270,0.04903918,60977.0,60971.0,0.40974133]
[1724130341271,0.04903918,60976.0,60974.0,0.081956]
[1724130341578,0.04903918,60978.0,60974.0,0.13089733]
[1724130341783,0.04903918,60978.0,60977.0,0.4742]
[1724130342083,0.04903918,60979.0,60977.0,0.4742]
[1724130342281,0.04903918,60980.0,60977.0,0.3608]
[1724130342478,0.04903918,60985.0,60979.0,0.195349]
[1724130342776,0.04903918,60987.0,60983.0,0.1134]
[1724130342979,0.04903918,60988.0,60986.0,0.1134]
[1724130343175,0.04903918,60988.0,60982.0,0.40961203]
[1724130343375,0.04903918,60989.0,60987.0,0.1134]
[1724130343678,0.04903918,60989.0,60988.0,0.1134]
[1724130343879,0.04903918,60990.0,60988.0,0.1134]
[1724130344087,0.04903918,60990.0,60989.0,0.1134]
[1724130344382,0.04903918,60991.0,60989.0,0.1134]
[1724130344575,0.04903918,60991.0,60986.0,0.08194]
[1724130344770,0.001,60987.0,60986.0,0.08194]
[1724130345574,0.001,60989.0,60987.0,0.081939]
[1724130346077,0.04903918,60991.0,60988.0,0.081937]
[1724130346270,0.04903918,60992.0,60989.0,0.081936]
[1724130346473,0.04903918,60992.0,60986.0,0.01056271]
[1724130346474,0.04903918,60992.0,60990.0,0.081935]
[1724130347176,0.05758763,60991.0,60990.0,0.081935]
[1724130347374,0.00854845,60991.0,60990.0,0.081935]
[1724130347980,0.00854845,60991.0,60987.0,0.001]
[1724130348181,0.001,60989.0,60987.0,0.002]
[1724130348382,3.77,60988.0,60987.0,0.002]
[1724130348885,3.8152,60988.0,60984.0,0.081943]
[1724130349183,0.00854845,60986.0,60984.0,0.081943]